fUST/lending_fUST_20251221
["ID","MTS","AMOUNT","RATE_DAILY","PERIOD"]
[399405382,1766327749084,-1200.0,8.43e-05,2]
[399405385,1766327763440,300.0,8.43e-05,2]
[399405392,1766327774086,999.0,0.00032876,120]
[399405394,1766327793083,-8057.05662314,8.431e-05,2]
[399405395,1766327805088,-10000.01,8.431e-05,2]
[399405396,1766327805247,-1659.31718231,8.431e-05,2]
[399405397,1766327805276,-6681.37563538,8.431e-05,2]
[399405398,1766327805988,2000.0,0.0003287,60]
[399405400,1766327815087,652.7057935,8.219e-05,2]
[399405402,1766327822801,300.0,8.43e-05,2]
[399405403,1766327823584,-300.0,8.431e-05,2]
[399405404,1766327823627,-300.0,8.431e-05,2]
[399405405,1766327823663,-300.0,8.431e-05,2]
[399405406,1766327823700,-300.0,8.431e-05,2]
[399405407,1766327823736,-300.0,8.431e-05,2]
[399405408,1766327823773,-300.0,8.431e-05,2]
[399405409,1766327823811,-300.0,8.431e-05,2]
[399405410,1766327823848,-300.0,8.431e-05,2]
[399405411,1766327823885,-300.0,8.431e-05,2]
[399405412,1766327823921,-300.0,8.431e-05,2]
[399405413,1766327823956,-300.0,8.431e-05,2]
[399405414,1766327823994,-300.0,8.431e-05,2]
[399405415,1766327824029,-300.0,8.431e-05,2]
[399405416,1766327824062,-300.0,8.431e-05,2]
[399405417,1766327824096,-300.0,8.431e-05,2]
[399405436,1766327830694,1000.01,8.198e-05,2]
[399405438,1766327830723,1589.35,8.198e-05,2]
[399405485,1766327841090,-317.58483932,8.522e-05,2]
[399405499,1766327844930,500.0,8.43e-05,2]
[399405500,1766327844964,191.40937674,8.43e-05,2]
[399405501,1766327845036,500.0,8.43e-05,2]
[399405573,1766327867726,-4821.29,8.588e-05,2]
[399405575,1766327867868,-357.43,8.588e-05,2]
[399405603,1766327874487,153.65166577,8.43e-05,2]
[399405635,1766327887874,-388.03783106,8.6e-05,2]
[399405652,1766327909854,9223.93433788,8.331e-05,2]
[399405653,1766327909884,10000.01,8.331e-05,2]
[399405654,1766327909913,5780.95204481,8.331e-05,2]
[399405655,1766327915124,2512.94,8.194e-05,2]
[399405656,1766327915237,-300.0,8.61e-05,2]
[399405657,1766327916382,5025.87,8.584e-05,2]
[399405658,1766327923192,4374.14,8.61e-05,2]
[399405659,1766327923219,625.86,8.61e-05,2]
[399405662,1766327935475,-177.94561573,8.611e-05,2]
[399405663,1766327935507,-1476.47925801,8.611e-05,2]
[399405664,1766327935539,-216.18714041,8.611e-05,2]
[399405665,1766327935569,-282.12700058,8.611e-05,2]
[399405666,1766327935601,-1045.22959256,8.611e-05,2]
[399405667,1766327942646,2000.0,0.0003287,60]
[399405672,1766327948263,3604.07278542,8.611e-05,2]
[399405673,1766327948292,1395.92721458,8.611e-05,2]
[399405675,1766327953959,-250.0,8.7e-05,2]
[399405677,1766327960460,5500.0,0.00032876,60]
[399405679,1766327970887,5000.0,8.7e-05,2]
[399405681,1766327977437,-300.0,8.705e-05,2]
[399405682,1766327977471,-282.14540151,8.706e-05,2]
[399405683,1766327977505,-507.86172272,8.706e-05,2]
[399405684,1766327977536,-902.86528484,8.706e-05,2]
[399405685,1766327977568,-1904.08740069,8.706e-05,2]
[399405686,1766327977600,-98.43120442,8.706e-05,2]
[399405687,1766327977735,-2009.22797164,8.706e-05,2]
[399405688,1766327977767,-406.70593791,8.706e-05,2]
[399405691,1766327992688,500.0,8.705e-05,2]
[399405692,1766327992739,541.70068131,8.705e-05,2]
[399405693,1766327995978,4126.44149959,8.706e-05,2]
[399405694,1766327996004,873.55850041,8.706e-05,2]
[399405695,1766327997369,2425.61,8.223e-05,2]
[399405696,1766327997788,-300.0,8.782e-05,2]
[399405697,1766327997823,-300.0,8.782e-05,2]
[399405698,1766327997856,-300.0,8.782e-05,2]
[399405699,1766327997888,-300.0,8.782e-05,2]
[399405700,1766327997919,-300.0,8.782e-05,2]
[399405701,1766327997951,-300.0,8.782e-05,2]
[399405702,1766327997983,-300.0,8.782e-05,2]
[399405703,1766327998017,-300.0,8.782e-05,2]
[399405704,1766327998056,-300.0,8.782e-05,2]
[399405705,1766327998091,-300.0,8.782e-05,2]
[399405706,1766327998126,-300.0,8.782e-05,2]
[399405707,1766327998160,-300.0,8.782e-05,2]
[399405708,1766327998195,-300.0,8.782e-05,2]
[399405709,1766327998228,-300.0,8.782e-05,2]
[399405710,1766327998261,-300.0,8.782e-05,2]
[399405711,1766327998706,1000.01,8.615e-05,2]
[399405712,1766327998733,3851.2,8.615e-05,2]
[399405713,1766328014508,999.0,0.00032876,120]
[399405714,1766328014814,-600.0,8.879e-05,2]
[399405715,1766328014846,-544.0,8.879e-05,2]
[399405716,1766328015262,1300.3341173,7.978e-05,2]
[399405718,1766328020159,5000.0,8.879e-05,2]
[399405722,1766328033132,-300.0,8.902e-05,2]
[399405723,1766328033166,-1200.0,8.902e-05,2]
[399405724,1766328041979,339.54297946,7.968e-05,2]
[399405725,1766328044251,611.17736302,8.262e-05,2]
[399405726,1766328044289,5000.0,8.902e-05,2]
[399405727,1766328045465,1049.28965752,8.557e-05,2]
[399405728,1766328045492,37.24787674,8.557e-05,2]
[399405729,1766328049496,-574.12855637,8.903e-05,2]
[399405730,1766328049533,-250.0,8.903e-05,2]
[399405731,1766328049568,-250.0,8.903e-05,2]
[399405732,1766328049599,-250.0,8.903e-05,2]
[399405733,1766328049631,-250.0,8.903e-05,2]
[399405734,1766328049665,-250.0,8.903e-05,2]
[399405735,1766328049700,-250.0,8.903e-05,2]
[399405736,1766328049739,-250.0,8.903e-05,2]
[399405737,1766328049770,-250.0,8.903e-05,2]
[399405738,1766328049803,-250.0,8.903e-05,2]
[399405739,1766328049835,-250.0,8.903e-05,2]
[399405740,1766328049867,-250.0,8.903e-05,2]
[399405742,1766328060450,3351.75288726,8.331e-05,2]
[399405743,1766328060483,10000.01,8.331e-05,2]
[399405744,1766328060515,10000.01,8.331e-05,2]
[399405745,1766328060556,10000.01,8.331e-05,2]
[399405746,1766328060592,10000.01,8.331e-05,2]
[399405747,1766328060624,10000.01,8.331e-05,2]
[399405748,1766328060657,10000.01,8.331e-05,2]
[399405749,1766328060690,10000.01,8.331e-05,2]
[399405750,1766328060721,3888.47933069,8.331e-05,2]
[399405751,1766328069135,5000.0,8.903e-05,2]
[399405753,1766328076520,460.08,0.00032876,60]
[399405755,1766328078144,2000.0,0.0003287,60]
[399405765,1766328098158,152.0,0.000328,60]
[399405768,1766328110508,-2332.99,8.227e-05,2]
[399405769,1766328113882,152.0,0.000328,60]
[399405776,1766328128657,-4665.98,8.619e-05,2]
[399405786,1766328137649,152.0,0.000328,90]
[399405812,1766328152618,154.0,0.000328,120]
[399405827,1766328164887,2261.15,8.218e-05,2]
[399405828,1766328164940,4522.3,8.609e-05,2]
[399405829,1766328165649,154.49114937,0.000328,120]
[399405841,1766328212878,2000.0,0.0003287,60]
[399405846,1766328249550,2179.25,8.231e-05,2]
[399405847,1766328249641,4358.49,8.623e-05,2]
[399405848,1766328253972,999.0,0.00032876,120]
[399405851,1766328312431,1076.92,0.00032876,60]
[399405853,1766328334629,2096.04,8.227e-05,2]
[399405856,1766328335051,1366.23,8.619e-05,2]
[399405857,1766328335081,2825.85,8.619e-05,2]
[399405858,1766328342618,1000.0,0.00032876,60]
[399405859,1766328348615,2000.0,0.0003287,60]
[399405868,1766328420031,2016.01,8.255e-05,2]
[399405869,1766328420480,4032.02,8.649e-05,2]
[399405870,1766328422799,171.60678406,8.61e-05,2]
[399405873,1766328442539,1000.0,0.00032876,60]
[399405886,1766328465112,1000.0,0.00032876,60]
[399405890,1766328470044,500.0,0.00031877,120]
[399405891,1766328470831,517.03,0.00031877,120]
[399405893,1766328485211,2000.0,0.0003287,60]
[399405894,1766328503004,1955.4,8.282e-05,2]
[399405895,1766328503446,3910.79,8.676e-05,2]
[399405896,1766328506700,1000.0,0.00032876,60]
[399405897,1766328525425,999.0,0.00032876,120]
[399405906,1766328586607,1975.95,8.155e-05,2]
[399405907,1766328587033,3951.89,8.543e-05,2]
[399405908,1766328608480,207.1654857,8.652e-05,2]
[399405909,1766328619686,2000.0,0.0003287,60]
[399405910,1766328624428,487.64357529,8.634e-05,2]
[399405937,1766328632187,564.5952699,8.61e-05,2]
[399405965,1766328632452,-335.8706,8.741e-05,2]
[399405967,1766328632462,-255.45579617,8.741e-05,2]
[399406494,1766328642308,169.40462014,7.764e-05,2]
[399406702,1766328644494,677.61848058,7.933e-05,2]
[399406890,1766328646195,1524.6415813,8.102e-05,2]
[399406916,1766328646449,-287.54420383,8.741e-05,2]
[399406919,1766328646459,-72.16422615,8.77e-05,2]
[399407075,1766328648252,2710.47392231,8.272e-05,2]
[399407284,1766328650248,3658.46706478,8.441e-05,2]
[399407288,1766328650277,576.64843883,8.441e-05,2]
[399408191,1766328665742,5000.0,8.703e-05,2]
[399408193,1766328670569,1900.5,8.187e-05,2]
[399408194,1766328671007,2522.86156117,8.577e-05,2]
[399408195,1766328671036,1278.13843883,8.577e-05,2]
[399408199,1766328689613,5000.0,8.703e-05,2]
[399408202,1766328713508,3721.87156117,8.703e-05,2]
[399408203,1766328713537,1278.12843883,8.703e-05,2]
[399408216,1766328723247,587.27680664,7.917e-05,2]
[399408217,1766328725217,1057.09825196,8.084e-05,2]
[399408218,1766328727225,1879.28578126,8.251e-05,2]
[399408219,1766328729192,2936.38403322,8.418e-05,2]
[399408220,1766328729634,614.96645325,8.703e-05,2]
[399408221,1766328737982,1646.87023484,8.703e-05,2]
[399408222,1766328738011,3353.12976516,8.703e-05,2]
[399408223,1766328746542,999.0,0.00032876,120]
[399408224,1766328753170,1851.39,8.242e-05,2]
[399408225,1766328753625,3702.77,8.635e-05,2]
[399408226,1766328755183,2000.0,0.0003287,60]
[399408227,1766328758285,207.1654857,8.641e-05,2]
[399408228,1766328761983,885.55474914,8.703e-05,2]
[399408229,1766328762012,4114.44525086,8.703e-05,2]
[399408232,1766328785105,5000.0,8.703e-05,2]
[399408234,1766328811302,885.56474914,8.703e-05,2]
[399408235,1766328811331,4114.43525086,8.703e-05,2]
[399408237,1766328834106,5000.0,8.703e-05,2]
[399408238,1766328837075,885.57474914,8.408e-05,2]
[399408239,1766328837101,899.61525086,8.408e-05,2]
[399408240,1766328850554,300.0,8.703e-05,2]
[399408241,1766328859011,5000.0,8.703e-05,2]
[399408243,1766328883013,5000.0,8.703e-05,2]
[399408244,1766328889834,2000.0,0.0003287,60]
[399408245,1766328907399,5000.0,8.703e-05,2]
[399408248,1766328920437,0.01,8.286e-05,2]
[399408249,1766328920468,1806.2,8.286e-05,2]
[399408250,1766328920545,3612.43,8.681e-05,2]
[399408254,1766328931454,4581.38,8.703e-05,2]
[399408255,1766328931487,418.62,8.703e-05,2]
[399408257,1766328944509,-407.25841209,8.785e-05,2]
[399408258,1766328944543,-250.0,8.8e-05,2]
[399408259,1766328944580,-500.0,8.807e-05,2]
[399408260,1766328944625,-532.30066742,8.807e-05,2]
[399408261,1766328944660,-1200.0,8.807e-05,2]
[399408262,1766328944695,-300.0,8.807e-05,2]
[399408263,1766328949823,296.63830843,7.963e-05,2]
[399408264,1766328951434,533.94895518,8.192e-05,2]
[399408265,1766328954275,949.24258699,8.42e-05,2]
[399408266,1766328956727,5000.0,8.703e-05,2]
[399408267,1766328980983,5000.0,8.703e-05,2]
[399408268,1766328981641,999.0,0.00032876,120]
[399408269,1766329002442,1755.65,8.254e-05,2]
[399408270,1766329002865,3244.36,8.647e-05,2]
[399408271,1766329002895,266.94,8.647e-05,2]
[399408272,1766329004633,5000.0,8.703e-05,2]
[399408273,1766329014663,500.0,0.00032876,120]
[399408274,1766329025845,2000.0,0.0003287,60]
[399408275,1766329054299,1523.4285666,0.00032876,60]
[399408277,1766329086945,1704.42,8.35e-05,2]
[399408278,1766329161400,2000.0,0.0003287,60]
[399408279,1766329170489,1695.47,8.3e-05,2]
[399408280,1766329170912,1333.18,8.695e-05,2]
[399408281,1766329170940,2057.76,8.695e-05,2]
[399408282,1766329175477,722.563654,0.00030137,120]
[399408284,1766329211891,5000.0,0.0001,10]
[399408285,1766329215483,5421.0082286,7.903e-05,2]
[399408286,1766329222786,999.0,0.00032876,120]
[399408287,1766329225649,-7688.31154215,8.808e-05,2]
[399408288,1766329226026,-10000.01,8.808e-05,2]
[399408289,1766329227507,426.27568225,8.634e-05,2]
[399408290,1766329234885,5000.0,0.0001,10]
[399408293,1766329253359,1642.19,8.577e-05,2]
[399408294,1766329259474,296.86518496,7.838e-05,2]
[399408295,1766329260635,5000.0,8.703e-05,2]
[399408296,1766329260917,534.35733293,7.938e-05,2]
[399408297,1766329262574,949.96859187,8.038e-05,2]
[399408298,1766329267663,2008.5538208,7.903e-05,2]
[399408299,1766329284544,5000.0,8.703e-05,2]
[399408300,1766329296325,2000.0,0.0003287,60]
[399408302,1766329306734,176.741,8.534e-05,2]
[399408306,1766329307228,505.4,8.7e-05,2]
[399408313,1766329308671,5000.0,8.703e-05,2]
[399408314,1766329310917,169.905749,3.947e-05,2]
[399408315,1766329311126,169.905749,7.893e-05,2]
[399408317,1766329337079,1621.29,8.274e-05,2]
[399408318,1766329337501,3242.58,8.668e-05,2]
[399408322,1766329371960,3921.0,8.703e-05,2]
[399408324,1766329400938,4003.0961874,7.879e-05,2]
[399408325,1766329421644,1559.38,8.49e-05,2]
[399408326,1766329431776,2000.0,0.0003287,60]
[399408328,1766329452072,999.0,0.00032876,120]
[399408330,1766329489873,1000.0,0.0003287,120]
[399408331,1766329503573,12671.37565935,0.0001919,120]
[399408332,1766329504217,1539.54,8.433e-05,2]
[399408333,1766329509562,1000.0,0.0003287,120]
[399408334,1766329514438,199.149418,0.00028767,60]
[399408335,1766329529503,400.0,0.00032877,60]
[399408336,1766329531267,1372.84548194,8.634e-05,2]
[399408337,1766329532005,1000.0,0.0003287,120]
[399408338,1766329539571,1000.0,0.0003287,120]
[399408339,1766329545841,1000.0,0.0003287,120]
[399408340,1766329553368,1000.0,0.0003287,120]
[399408341,1766329560314,1000.0,0.0003287,120]
[399408342,1766329567264,2000.0,0.0003287,60]
[399408343,1766329570413,173.25393412,8.193e-05,2]
[399408344,1766329572082,311.85708141,8.562e-05,2]
[399408345,1766329586769,1519.94,8.45e-05,2]
[399408349,1766329643813,400.0,0.00032,120]
[399408351,1766329671476,1500.6,8.6e-05,2]
[399408352,1766329673435,5000.0,0.00032877,60]
[399408353,1766329675476,1500.0,0.000324,120]
[399408354,1766329702613,2000.0,0.0003287,60]
[399408355,1766329723297,999.0,0.00032876,120]
[399408359,1766329755331,1481.5,8.609e-05,2]
[399408360,1766329776443,500.0,0.00032876,120]
[399408361,1766329803141,3000.0,0.000324,120]
[399408362,1766329813841,574.12855637,8.703e-05,2]
[399408363,1766329813890,250.0,8.703e-05,2]
[399408364,1766329814944,250.0,8.703e-05,2]
[399408365,1766329815320,250.0,8.703e-05,2]
[399408366,1766329815941,250.0,8.703e-05,2]
[399408367,1766329816591,250.0,8.703e-05,2]
[399408371,1766329817671,250.0,8.703e-05,2]
[399408372,1766329818812,250.0,8.703e-05,2]
[399408373,1766329819465,250.0,8.703e-05,2]
[399408374,1766329820086,250.0,8.703e-05,2]
[399408375,1766329820794,250.0,8.703e-05,2]
[399408376,1766329821436,250.0,8.703e-05,2]
[399408416,1766329832569,-542.0,8.705e-05,2]
[399408418,1766329832582,-399.11324385,8.705e-05,2]
[399408420,1766329832594,-139.25325067,8.707e-05,2]
[399408423,1766329832612,-160.74674933,8.707e-05,2]
[399408425,1766329832624,-501.26733171,8.708e-05,2]
[399408531,1766329837622,2000.0,0.0003287,60]
[399408547,1766329839317,1462.64,8.445e-05,2]
[399408617,1766329848415,1400.0,0.000328,120]
[399408620,1766329889449,5000.0,8.703e-05,2]
[399408622,1766329903848,819.0,0.000328,120]
[399408623,1766329906750,176.742,8.534e-05,2]
[399408624,1766329914037,5000.0,8.703e-05,2]
[399408625,1766329921878,600.0,0.000328,120]
[399408626,1766329922209,1444.03,8.595e-05,2]
[399408721,1766329938110,5000.0,8.703e-05,2]
[399408768,1766329957521,999.0,0.00032876,120]
[399408769,1766329961775,5000.0,8.703e-05,2]
[399408771,1766329973129,2000.0,0.0003287,60]
[399408772,1766329986316,5000.0,8.703e-05,2]
[399408773,1766329991190,1000.0,0.00032877,60]
[399408774,1766330004808,1425.65,8.579e-05,2]
[399408775,1766330008940,5000.0,8.703e-05,2]
[399408777,1766330033758,5000.0,8.703e-05,2]
[399408778,1766330057668,5000.0,8.703e-05,2]
[399408779,1766330080798,5000.0,8.703e-05,2]
[399408780,1766330090349,1407.51,8.53e-05,2]
[399408781,1766330104630,5000.0,8.703e-05,2]
[399408782,1766330107925,2000.0,0.0003287,60]
[399408783,1766330108004,1000.0,8.703e-05,2]
[399408784,1766330108646,1000.0,8.703e-05,2]
[399408785,1766330109312,1000.0,8.703e-05,2]
[399408786,1766330109931,931.67743222,8.703e-05,2]
[399408787,1766330113057,500.0,8.703e-05,2]
[399408788,1766330114203,500.0,8.703e-05,2]
[399408789,1766330114313,574.12855637,8.703e-05,2]
[399408790,1766330114820,250.0,8.703e-05,2]
[399408791,1766330114850,371.32275296,8.703e-05,2]
[399408792,1766330115442,250.0,8.703e-05,2]
[399408793,1766330116055,250.0,8.703e-05,2]
[399408794,1766330116707,250.0,8.703e-05,2]
[399408795,1766330117788,250.0,8.703e-05,2]
[399408796,1766330117950,250.0,8.703e-05,2]
[399408797,1766330118596,250.0,8.703e-05,2]
[399408798,1766330118816,250.0,8.703e-05,2]
[399408799,1766330119150,151.0,8.703e-05,2]
[399408800,1766330119246,250.0,8.703e-05,2]
[399408801,1766330119447,250.0,8.703e-05,2]
[399408802,1766330119786,151.0,8.703e-05,2]
[399408803,1766330119872,250.0,8.703e-05,2]
[399408804,1766330120054,250.0,8.703e-05,2]
[399408805,1766330120435,151.0,8.703e-05,2]
[399408806,1766330120692,250.0,8.703e-05,2]
[399408807,1766330120989,250.0,8.703e-05,2]
[399408808,1766330121065,151.0,8.703e-05,2]
[399408809,1766330121322,250.0,8.703e-05,2]
[399408810,1766330121604,253.30496577,8.703e-05,2]
[399408811,1766330121957,250.0,8.703e-05,2]
[399408812,1766330122166,203.43323235,8.703e-05,2]
[399408813,1766330122597,255.11863239,8.703e-05,2]
[399408814,1766330123081,250.0,8.703e-05,2]
[399408815,1766330123741,250.0,8.703e-05,2]
[399408816,1766330124375,250.0,8.703e-05,2]
[399408817,1766330124991,250.0,8.703e-05,2]
[399408818,1766330125610,250.0,8.703e-05,2]
[399408819,1766330126224,250.0,8.703e-05,2]
[399408820,1766330126856,250.0,8.703e-05,2]
[399408821,1766330127460,250.0,8.703e-05,2]
[399408822,1766330129072,250.0,8.703e-05,2]
[399408823,1766330129112,5000.0,8.703e-05,2]
[399408824,1766330129179,250.0,8.703e-05,2]
[399408825,1766330129396,254.19800399,8.703e-05,2]
[399408826,1766330131037,500.0,8.703e-05,2]
[399408827,1766330131680,500.0,8.703e-05,2]
[399408828,1766330132337,500.0,8.703e-05,2]
[399408829,1766330132999,500.0,8.703e-05,2]
[399408830,1766330134088,500.0,8.703e-05,2]
[399408831,1766330134708,500.0,8.703e-05,2]
[399408832,1766330135855,500.0,8.703e-05,2]
[399408833,1766330136483,500.0,8.703e-05,2]
[399408834,1766330137117,500.0,8.703e-05,2]
[399408835,1766330137731,500.0,8.703e-05,2]
[399408836,1766330138362,500.0,8.703e-05,2]
[399408837,1766330152250,5000.0,8.703e-05,2]
[399408838,1766330176547,5000.0,8.703e-05,2]
[399408839,1766330181043,1389.59,8.55e-05,2]
[399408840,1766330199619,5000.0,8.703e-05,2]
[399408841,1766330212488,999.0,0.00032876,120]
[399408843,1766330224327,5000.0,8.703e-05,2]
[399408844,1766330225172,107828.46760086,8.608e-05,2]
[399408847,1766330243104,2000.0,0.0003287,60]
[399408848,1766330249138,5000.0,8.703e-05,2]
[399408849,1766330265135,1371.91,8.545e-05,2]
[399408850,1766330273642,5000.0,8.703e-05,2]
[399408854,1766330297871,5000.0,8.703e-05,2]
[399408855,1766330322580,5000.0,8.703e-05,2]
[399408856,1766330346101,5000.0,8.703e-05,2]
[399408857,1766330350047,1354.45,8.537e-05,2]
[399408858,1766330370309,5000.0,8.703e-05,2]
[399408859,1766330374385,705427.19138458,8.608e-05,2]
[399408860,1766330374422,32603.85399542,8.608e-05,2]
[399408861,1766330378581,2000.0,0.0003287,60]
[399408863,1766330425449,1541.5917676,8.634e-05,2]
[399408864,1766330426307,999.0,0.00032876,120]
[399408865,1766330428403,2126.6646295,8.634e-05,2]
[399408867,1766330434942,1337.21,8.211e-05,2]
[399408868,1766330435363,2674.41,8.602e-05,2]
[399408869,1766330513763,2000.0,0.0003287,60]
[399408870,1766330518683,1286.15,8.222e-05,2]
[399408871,1766330519577,2572.3,8.613e-05,2]
[399408872,1766330571262,2000.0,0.00032876,60]
[399408873,1766330583151,300.0,8.702e-05,2]
[399408874,1766330586928,1200.0,8.702e-05,2]
[399408875,1766330597715,-500.0,8.703e-05,2]
[399408876,1766330597739,-111.03843791,8.703e-05,2]
[399408877,1766330598967,5000.0,8.702e-05,2]
[399408878,1766330600811,1237.04,8.248e-05,2]
[399408879,1766330601187,-388.96156209,8.703e-05,2]
[399408880,1766330601211,-101.24227146,8.703e-05,2]
[399408881,1766330601255,2474.09,8.641e-05,2]
[399408883,1766330603515,-181.59919124,8.703e-05,2]
[399408884,1766330606268,-35.88743653,8.703e-05,2]
[399408885,1766330606295,-184.68304335,8.703e-05,2]
[399408886,1766330608337,-264.8726205,8.703e-05,2]
[399408887,1766330612260,-50.44433615,8.703e-05,2]
[399408888,1766330612287,-167.25121838,8.703e-05,2]
[399408889,1766330615897,-332.74878162,8.703e-05,2]
[399408890,1766330615919,-59.82681069,8.703e-05,2]
[399408891,1766330617355,-240.03317121,8.703e-05,2]
[399408892,1766330617381,-41.41661612,8.703e-05,2]
[399408893,1766330619564,-317.56359275,8.703e-05,2]
[399408894,1766330621710,-141.01979113,8.703e-05,2]
[399408895,1766330621735,-53.84446158,8.703e-05,2]
[399408896,1766330622653,5000.0,8.702e-05,2]
[399408897,1766330623340,-235.1273795,8.703e-05,2]
[399408898,1766330625546,-211.02815892,8.703e-05,2]
[399408899,1766330625570,-83.38321813,8.703e-05,2]
[399408900,1766330628239,-366.89231098,8.703e-05,2]
[399408901,1766330630747,-49.72447089,8.703e-05,2]
[399408902,1766330630770,-232.85914903,8.703e-05,2]
[399408903,1766330632227,-267.14085097,8.703e-05,2]
[399408904,1766330632254,-87.75326845,8.703e-05,2]
[399408905,1766330637707,-217.41638008,8.703e-05,2]
[399408906,1766330642738,300.0,8.702e-05,2]
[399408907,1766330647043,5000.0,8.702e-05,2]
[399408908,1766330649345,2000.0,0.0003287,60]
[399408909,1766330673170,185.7159717,8.702e-05,2]
[399408910,1766330675093,500.0,8.702e-05,2]
[399408911,1766330675130,500.0,8.702e-05,2]
[399408912,1766330675172,500.0,8.702e-05,2]
[399408913,1766330675209,500.0,8.702e-05,2]
[399408914,1766330675253,500.0,8.702e-05,2]
[399408915,1766330675291,500.0,8.702e-05,2]
[399408916,1766330675328,500.0,8.702e-05,2]
[399408917,1766330675366,500.0,8.702e-05,2]
[399408918,1766330675401,500.0,8.702e-05,2]
[399408919,1766330675437,500.0,8.702e-05,2]
[399408920,1766330675481,500.0,8.702e-05,2]
[399408921,1766330675519,500.0,8.702e-05,2]
[399408922,1766330675553,500.0,8.702e-05,2]
[399408923,1766330675589,500.0,8.702e-05,2]
[399408924,1766330675632,204.62651792,8.702e-05,2]
[399408925,1766330675668,500.0,8.702e-05,2]
[399408926,1766330675709,500.0,8.702e-05,2]
[399408927,1766330675759,503.15724988,8.702e-05,2]
[399408928,1766330675799,500.0,8.702e-05,2]
[399408929,1766330675848,500.0,8.702e-05,2]
[399408930,1766330675905,500.0,8.702e-05,2]
[399408931,1766330675941,500.0,8.702e-05,2]
[399408932,1766330675980,500.0,8.702e-05,2]
[399408933,1766330676016,500.0,8.702e-05,2]
[399408934,1766330676071,500.0,8.702e-05,2]
[399408935,1766330676107,500.0,8.702e-05,2]
[399408936,1766330676155,500.0,8.702e-05,2]
[399408937,1766330676192,550.0,8.702e-05,2]
[399408938,1766330676235,306.04958375,8.702e-05,2]
[399408939,1766330676275,500.0,8.702e-05,2]
[399408940,1766330676316,500.0,8.702e-05,2]
[399408941,1766330676365,500.0,8.702e-05,2]
[399408942,1766330676404,500.0,8.702e-05,2]
[399408943,1766330676459,500.0,8.702e-05,2]
[399408944,1766330676505,500.0,8.702e-05,2]
[399408945,1766330676546,500.0,8.702e-05,2]
[399408946,1766330676590,500.0,8.702e-05,2]
[399408947,1766330676647,500.0,8.702e-05,2]
[399408948,1766330676960,500.0,8.702e-05,2]
[399408949,1766330677005,500.0,8.702e-05,2]
[399408950,1766330677047,500.0,8.702e-05,2]
[399408951,1766330677092,500.0,8.702e-05,2]
[399408952,1766330677131,500.0,8.702e-05,2]
[399408953,1766330680903,557.0416607,0.00032876,120]
[399408954,1766330683966,1189.81,8.164e-05,2]
[399408955,1766330684379,2379.62,8.553e-05,2]
[399408956,1766330699551,500.0,8.702e-05,2]
[399408957,1766330699590,500.0,8.702e-05,2]
[399408958,1766330699629,500.0,8.702e-05,2]
[399408959,1766330699665,500.0,8.702e-05,2]
[399408960,1766330699699,500.0,8.702e-05,2]
[399408961,1766330699737,500.0,8.702e-05,2]
[399408962,1766330699772,500.0,8.702e-05,2]
[399408963,1766330699815,500.0,8.702e-05,2]
[399408964,1766330699853,500.0,8.702e-05,2]
[399408965,1766330699889,500.0,8.702e-05,2]
[399408966,1766330699932,500.0,8.702e-05,2]
[399408967,1766330699971,500.0,8.702e-05,2]
[399408968,1766330700543,332.9798541,8.702e-05,2]
[399408969,1766330700586,500.0,8.702e-05,2]
[399408970,1766330700623,500.0,8.702e-05,2]